[Event "Skalica Open 2019"]
[Site "Skalica"]
[Date "2019.08.31"]
[Round "9.24"]
[White "Kastler, Peter"]
[Black "Matusina, Miroslav"]
[Result "1-0"]
[ECO "E00"]
[WhiteElo "1724"]
[BlackElo "1644"]
[Annotator "NA"]
[PlyCount "177"]
[EventDate "2019.08.25"]
[EventType "swiss"]
[EventCountry "SVK"]
[SourceTitle "playchess.com"]
[Source "ChessBase"]
[SourceQuality "1"]
[TimeControl "40/5400+30:1800+30"]

1. d4 {[%emt 0:00:00]} e6 {[%emt 0:00:00]} 2. c4 {[%emt 0:00:00]} Bb4+ {[%emt 0:00:01]} 3. Bd2 {[%emt 0:00:00]} Qe7 {[%emt 0:00:38]} 4. e3 {[%emt 0:00:22]} Nf6 {[%emt 0:01:03]} 5. Bxb4 {[%emt 0:00:41]} Qxb4+ {[%emt 0:00:14]} 6. Qd2 {[%emt 0:00:07]} Qxd2+ {[%emt 0:00:54]} 7. Nxd2 {[%emt 0:00:08]} d6 {[%emt 0:00:15]} 8. Ngf3 {[%emt 0:00:06]} b6 {[%emt 0:01:37]} 9. Be2 {[%emt 0:00:09]} Bb7 {[%emt 0:00:20]} 10. O-O {[%emt 0:00:07]} h6 {[%emt 0:01:45]} 11. Rac1 {[%emt 0:01:03]} Nbd7 {[%emt 0:01:16]} 12. Rfd1 {[%emt 0:01:12]} c5 {[%emt 0:10:49]} 13. dxc5 {[%emt 0:03:32]} dxc5 {[%emt 0:01:33]} 14. Nb1 {[%emt 0:00:42]} O-O {[%emt 0:01:17]} 15. Nc3 {[%emt 0:00:05]} a6 {[%emt 0:05:58]} 16. Rd2 {[%emt 0:03:23]} Bxf3 {[%emt 0:22:00]} 17. Bxf3 {[%emt 0:01:01]} Rab8 {[%emt 0:00:15]} 18. Rcd1 {[%emt 0:01:03]} Ne5 {[%emt 0:03:05]} 19. Be2 {[%emt 0:00:25]} g5 {[%emt 0:08:25]} 20. f3 {[%emt 0:03:41]} Rfc8 {[%emt 0:04:35]} 21. b3 {[%emt 0:05:44]} Kf8 {[%emt 0:00:10]} 22. h3 {[%emt 0:06:00]} Ke7 {[%emt 0:00:54]} 23. Kf2 {[%emt 0:02:13]} Ng6 {[%emt 0:06:53]} 24. Bd3 {[%emt 0:05:57]} Ne5 {[%emt 0:01:47]} 25. Be2 {[%emt 0:02:40]} Rd8 {[%emt 0:00:21]} 26. Rxd8 {[%emt 0:06:51]} Rxd8 {[%emt 0:00:02]} 27. Rxd8 {[%emt 0:00:09]} Kxd8 {[%emt 0:00:02]} 28. Na4 {[%emt 0:00:12]} Ned7 {[%emt 0:03:22]} 29. Bd3 {[%emt 0:00:20]} Ne5 {[%emt 0:04:14]} 30. Ke2 {[%emt 0:01:49]} Kc7 {[%emt 0:00:02]} 31. Nc3 {[%emt 0:00:27]} Nc6 {[%emt 0:04:51]} 32. Ne4 {[%emt 0:01:17]} Nxe4 {[%emt 0:00:07]} 33. Bxe4 {[%emt 0:00:14]} Ne7 {[%emt 0:00:24]} 34. g4 {[%emt 0:01:08]} Kd6 {[%emt 0:00:39]} 35. f4 {[%emt 0:00:32]} f6 {[%emt 0:01:19]} 36. Kf3 {[%emt 0:03:31]} e5 {[%emt 0:00:21]} 37. Bd3 {[%emt 0:03:53]} Nc6 {[%emt 0:00:20]} 38. Ke4 {[%emt 0:00:35]} Ne7 {[%emt 0:01:10]} 39. Kf3 {[%emt 0:06:19]} Ke6 {[%emt 0:01:33]} 40. a3 {[%emt 0:02:56]} Nc6 {[%emt 0:01:23]} 41. Bh7 {[%emt 0:31:23]} exf4 {[%emt 0:30:43]} 42. exf4 {[%emt 0:03:20]} Nd4+ {[%emt 0:00:23]} 43. Ke4 {[%emt 0:00:19]} Nxb3 {[%emt 0:00:02]} 44. fxg5 {[%emt 0:00:30]} fxg5 {[%emt 0:00:49]} 45. Bg8+ {[%emt 0:00:13]} Kf6 {[%emt 0:00:09]} 46. Kd5 {[%emt 0:00:16]} Na5 {[%emt 0:03:22]} 47. Kd6 {[%emt 0:00:29]} b5 {[%emt 0:04:52]} 48. Kxc5 {[%emt 0:00:30]} Nb7+ {[%emt 0:01:49]} 49. Kc6 {[%emt 0:00:34]} Na5+ {[%emt 0:02:11]} 50. Kc5 {[%emt 0:02:12]} Nb3+ {[%emt 0:01:13]} 51. Kb4 {[%emt 0:00:24]} Nd4 {[%emt 0:00:14]} 52. cxb5 {[%emt 0:00:55]} axb5 {[%emt 0:00:34]} 53. Bh7 {[%emt 0:00:24]} Ke5 {[%emt 0:00:22]} 54. Bd3 {[%emt 0:00:18]} Kd6 {[%emt 0:02:46]} 55. Bxb5 {[%emt 0:00:17]} Ne6 {[%emt 0:00:24]} 56. a4 {[%emt 0:00:49]} Nc7 {[%emt 0:00:59]} 57. a5 {[%emt 0:00:40]} Nd5+ {[%emt 0:00:34]} 58. Ka4 {[%emt 0:00:19]} Kc5 {[%emt 0:00:00]} 59. Bf1 {[%emt 0:00:00]} Nc3+ {[%emt 0:00:00]} 60. Kb3 {[%emt 0:00:00]} Nd5 {[%emt 0:00:00]} 61. a6 {[%emt 0:00:00]} Kb6 {[%emt 0:00:00]} 62. Kb2 {[%emt 0:00:00]} Ne3 {[%emt 0:00:00]} 63. Be2 {[%emt 0:00:00]} Ng2 {[%emt 0:00:00]} 64. Kc3 {[%emt 0:00:00]} Nf4 {[%emt 0:00:00]} 65. Bf1 {[%emt 0:00:00]} Ne6 {[%emt 0:00:00]} 66. Kd2 {[%emt 0:00:00]} Kc7 {[%emt 0:00:00]} 67. Ke3 {[%emt 0:00:00]} Nc5 {[%emt 0:00:00]} 68. Kd4 {[%emt 0:00:00]} Ne6+ {[%emt 0:00:00]} 69. Ke5 {[%emt 0:00:00]} Nf4 {[%emt 0:00:00]} 70. Kf6 {[%emt 0:00:00]} Nd5+ {[%emt 0:00:00]} 71. Kg6 {[%emt 0:00:00]} Ne3 {[%emt 0:00:00]} 72. Be2 {[%emt 0:00:00]} Ng2 {[%emt 0:00:00]} 73. a7 {[%emt 0:00:00]} Nf4+ {[%emt 0:00:00]} 74. Kxh6 {[%emt 0:00:00]} Kb7 {[%emt 0:00:00]} 75. Bf3+ {[%emt 0:00:00]} Kxa7 {[%emt 0:00:00]} 76. Kxg5 {[%emt 0:00:00]} Nxh3+ {[%emt 0:00:00]} 77. Kh4 {[%emt 0:00:00]} Nf4 {[%emt 0:00:00]} 78. g5 {[%emt 0:00:00]} Kb6 {[%emt 0:00:00]} 79. Kg4 {[%emt 0:00:00]} Ng6 {[%emt 0:00:00]} 80. Be4 {[%emt 0:00:00]} Ne7 {[%emt 0:00:00]} 81. Kf4 {[%emt 0:00:00]} Kc7 {[%emt 0:00:00]} 82. Ke5 {[%emt 0:00:00]} Kd7 {[%emt 0:00:00]} 83. Kf6 {[%emt 0:00:00]} Kd6 {[%emt 0:00:00]} 84. Bf3 {[%emt 0:00:00]} Ng8+ {[%emt 0:00:00]} 85. Kf7 {[%emt 0:00:00]} Ne7 {[%emt 0:00:00]} 86. Bg4 {[%emt 0:00:00]} Nc6 {[%emt 0:00:00]} 87. Bh3 {[%emt 0:00:00]} Ne5+ {[%emt 0:00:00]} 88. Kf6 {[%emt 0:00:00]} Nd7+ {[%emt 0:00:00]} 89. Bxd7 1-0